bitfinex-derivatives/quotes_ETHF0:USTF0_20230830
["timestamp","ask_amount","ask_price","bid_price","bid_amount"]
[1693399324261,2.26993648,1715.5,1715.3,9.60358176]
[1693399324963,3.2078,1715.6,1715.3,9.60358176]
[1693399325266,5.47773648,1715.6,1715.3,11.87351823]
[1693399325462,13.64773648,1715.6,1715.3,3.70351823]
[1693399325761,11.3778,1715.4,1714.9,8.17]
[1693399325957,3.2078,1715.2,1714.9,8.17]
[1693399326164,3.2078,1715.2,1715.0,1.43358176]
[1693399326463,3.2078,1715.4,1715.1,8.17]
[1693399326663,5.41383395,1715.8,1715.3,8.17]
[1693399326664,3.2078,1715.6,1715.3,8.17]
[1693399327063,3.2078,1715.6,1715.3,10.43993647]
[1693399327255,5.47773648,1715.6,1715.4,1.43358176]
[1693399327860,5.47773648,1715.6,1715.2,2.3957]
[1693399328067,3.2078,1715.4,1715.2,2.3957]
[1693399328260,5.47773648,1715.4,1715.2,2.3957]
[1693399328560,5.47773648,1715.4,1715.2,3.82928176]
[1693399329559,5.47773648,1715.4,1715.2,2.3957]
[1693399329955,2.26993648,1715.4,1715.3,1.43358176]
[1693399330356,3.2078,1715.5,1715.3,3.70351823]
[1693399331259,16.0348,1715.5,1715.3,3.70351823]
[1693399331656,16.0348,1715.5,1715.3,1.43358176]
[1693399332068,2.26993648,1715.4,1715.2,2.3957]
[1693399332367,3.2078,1715.3,1715.2,2.3957]
[1693399332866,3.2078,1715.3,1715.2,3.82928176]
[1693399333062,3.2078,1715.3,1715.2,2.3957]
[1693399333463,3.2078,1715.3,1715.2,3.82928176]
[1693399335269,12.827,1715.5,1715.2,3.82928176]
[1693399335469,12.827,1715.5,1715.3,2.26993647]
[1693399335662,12.827,1715.5,1715.4,1.43358176]
[1693399336268,12.827,1715.5,1715.3,2.26993647]
[1693399336573,15.09693648,1715.5,1715.2,2.3957]
[1693399336867,15.09693648,1715.5,1715.2,4.66563647]
[1693399337773,3.2078,1715.4,1715.2,2.3957]
[1693399337973,2.26993648,1715.3,1715.2,2.3957]
[1693399338370,2.26993648,1715.3,1715.2,3.82928176]
[1693399338770,2.26993648,1715.3,1715.2,2.3957]
[1693399339269,2.26993648,1715.3,1715.2,3.82928176]
[1693399339466,16.0348,1715.4,1715.2,3.82928176]
[1693399339668,18.30473648,1715.4,1715.2,3.82928176]
[1693399340475,20.58071023,1715.4,1715.2,3.82928176]
[1693399341972,7.75371023,1715.4,1715.2,3.82928176]
[1693399342171,7.75371023,1715.4,1715.2,2.3957]
[1693399342778,7.75371023,1715.4,1715.2,3.82928176]
[1693399345178,7.75371023,1715.4,1715.2,2.3957]
[1693399345373,2.27597375,1715.3,1715.2,2.3957]
[1693399345577,15.10297375,1715.3,1715.0,2.4787]
[1693399345769,5.47773648,1715.2,1715.1,1.43358176]
[1693399346975,5.47773648,1715.2,1715.0,2.4787]
[1693399347175,15.10297375,1715.1,1714.9,2.6131]
[1693399347374,18.30473648,1715.0,1714.9,2.6131]
[1693399347980,20.58071023,1715.0,1714.9,2.6131]
[1693399348376,7.75956642,1715.0,1714.9,2.6131]
[1693399348979,7.75956642,1715.0,1714.9,4.04668176]
[1693399349182,7.75956642,1715.0,1714.9,2.6131]
[1693399350081,8.0512072,1715.0,1714.9,2.6131]
[1693399350282,8.0512072,1715.0,1714.6,4.07737913]
[1693399350483,2.28182994,1714.9,1714.6,4.9742]
[1693399350677,2.28182994,1714.9,1714.8,0.00874661]
[1693399352283,10.44682994,1714.9,1714.8,1.44232837]
[1693399352475,10.44682994,1714.9,1714.8,0.00874661]
[1693399352986,10.44682994,1714.9,1714.8,1.44232837]
[1693399353281,10.44682994,1714.9,1714.8,3.71226484]
[1693399353582,4.55176642,1715.0,1714.8,3.71226484]
[1693399353783,2.28182994,1715.0,1714.8,19.48827696]
[1693399354080,6.25023992,1715.2,1714.8,19.48827696]
[1693399354081,2.28182994,1715.1,1714.8,19.48827696]
[1693399354284,2.28182994,1715.1,1714.9,3.2078]
[1693399354583,2.28182994,1715.1,1715.0,3.70351823]
[1693399354786,10.44682994,1715.1,1714.8,0.00874661]
[1693399354982,10.44682994,1715.1,1714.8,2.27868308]
[1693399355286,2.28182994,1715.0,1714.9,1.43358176]
[1693399358281,3.04243992,1715.2,1715.0,2.26993647]
[1693399358486,2.83489526,1715.2,1715.1,1.43358176]
[1693399358685,0.29159865,1715.2,1715.1,1.43358176]
[1693399359089,0.29159865,1715.2,1715.0,2.26993647]
[1693399359294,3.8030499,1715.3,1714.9,5.0248]
[1693399359496,8.165,1715.1,1714.9,5.0248]
[1693399359697,8.165,1715.1,1715.0,1.43358176]
[1693399360095,8.165,1715.1,1714.9,5.0248]
[1693399360300,8.165,1715.1,1714.9,6.45838176]
[1693399360902,2.26993648,1715.0,1714.9,5.0248]
[1693399361290,8.165,1715.1,1714.9,6.45838176]
[1693399361996,10.43493648,1715.1,1714.9,5.0248]
[1693399362302,3.2078,1715.0,1714.9,5.0248]
[1693399362602,3.4994279,1715.0,1714.9,5.0248]
[1693399363297,3.4994279,1715.0,1714.9,6.45838176]
[1693399364601,11.6644279,1715.0,1714.9,3.99778176]
[1693399364803,11.6644279,1715.0,1714.9,2.5642]
[1693399365501,11.6644279,1715.0,1714.9,3.99778176]
[1693399365705,3.4994279,1715.0,1714.9,3.99778176]
[1693399365901,0.2916279,1715.0,1714.9,3.99778176]
[1693399366301,16.60757615,1715.2,1714.9,3.99778176]
[1693399366302,0.2916279,1715.1,1714.9,3.99778176]
[1693399366498,0.2916279,1715.1,1715.0,2.26993647]
[1693399369499,4.0946778,1715.1,1715.0,2.26993647]
[1693399369702,12.2596778,1715.1,1714.9,2.5642]
[1693399370011,0.2916279,1715.0,1714.9,2.5642]
[1693399370304,7.77145988,1715.6,1715.0,15.71058847]
[1693399370504,4.50178701,1715.6,1715.3,8.165]
[1693399370710,3.91868701,1715.6,1715.4,11.86851823]
[1693399370909,0.0087438,1715.7,1715.4,15.76784644]
[1693399371110,0.0087438,1715.7,1715.5,3.70351823]
[1693399371408,1.30273081,1715.7,1715.5,3.70351823]
[1693399371605,10.7986438,1715.8,1715.5,3.70351823]
[1693399372101,13.06858028,1715.8,1715.5,3.70351823]
[1693399372302,14.36256729,1715.8,1715.5,3.70351823]
[1693399372510,17.63224016,1715.8,1715.5,3.70351823]
[1693399372709,18.92622717,1715.8,1715.5,3.70351823]
[1693399373198,12.09263081,1715.8,1715.5,3.70351823]
[1693399373399,10.7986438,1715.8,1715.5,3.70351823]
[1693399373605,13.06858028,1715.8,1715.5,3.70351823]
[1693399373801,14.36256729,1715.8,1715.5,3.70351823]
[1693399374709,8.165,1715.6,1715.3,8.2188]
[1693399374908,8.165,1715.5,1715.3,8.2188]
[1693399375513,10.43493648,1715.5,1715.3,9.65238176]
[1693399375913,10.43493648,1715.5,1715.3,8.2188]
[1693399376305,10.43493648,1715.5,1715.3,9.65238176]
[1693399376503,10.43493648,1715.5,1715.3,8.2188]
[1693399377116,10.43493648,1715.5,1715.3,3.2078]
[1693399377312,8.165,1715.4,1715.0,4.8993]
[1693399377512,2.26993648,1715.3,1715.1,2.26993647]
[1693399377811,2.26993648,1715.3,1715.2,1.43358176]
[1693399378019,8.165,1715.5,1715.2,1.43358176]
[1693399378218,8.165,1715.5,1715.3,5.47773647]
[1693399378412,8.165,1715.5,1715.4,1.43358176]
[1693399380619,8.165,1715.5,1715.3,2.26993647]
[1693399380918,8.165,1715.5,1715.1,11.3728]
[1693399380919,9.22877445,1715.5,1715.1,11.3728]
[1693399381313,9.22877445,1715.5,1715.1,13.64273647]
[1693399381819,9.22877445,1715.5,1715.2,7.49993717]
[1693399382020,8.165,1715.4,1715.3,1.43358176]
[1693399382718,10.43493648,1715.4,1715.1,3.2078]
[1693399382919,10.43493648,1715.4,1715.0,4.8993]
[1693399383417,12.91243648,1715.4,1715.1,2.26993647]
[1693399383616,12.91243648,1715.4,1715.2,1.43358176]
[1693399383816,12.91243648,1715.4,1715.1,2.26993647]
[1693399384116,16.12023648,1715.4,1715.2,1.43358176]
[1693399384319,16.12023648,1715.4,1715.0,7.16923647]
[1693399388626,3.04583592,1715.3,1715.0,7.16923647]
[1693399388826,2.26993648,1715.2,1715.0,7.16923647]
[1693399389022,2.26993648,1715.2,1715.0,4.70403647]
[1693399389224,2.26993648,1715.2,1715.0,6.13761823]
[1693399389522,2.26993648,1715.2,1715.0,3.86768176]
[1693399390021,2.26993648,1715.2,1715.0,2.4341]
[1693399390221,2.26993648,1715.2,1714.9,3.2078]
[1693399390726,8.165,1715.0,1714.8,13.73074661]
[1693399390930,10.43493648,1715.0,1714.8,13.73074661]
[1693399391225,5.60543592,1715.1,1714.8,0.00874661]
[1693399391428,2.5596,1715.1,1714.9,1.43358176]
[1693399391618,2.5596,1715.1,1714.9,3.70351823]
[1693399392031,2.5596,1715.1,1714.9,11.86851823]
[1693399395424,2.5596,1715.1,1714.9,3.70351823]
[1693399395625,2.26993648,1715.0,1714.8,0.00874661]
[1693399395830,5.60543592,1715.1,1714.8,9.60732837]
[1693399396319,7.8753724,1715.1,1714.8,9.60732837]
[1693399397332,7.8753724,1715.1,1714.8,8.17374661]
[1693399397728,1.52332346,1714.9,1714.8,8.17374661]
[1693399397932,1.52332346,1714.9,1714.8,9.60732837]
[1693399399733,1.52332346,1714.9,1714.8,8.17374661]
[1693399399934,1.52332346,1714.9,1714.8,9.60732837]
[1693399400430,1.52332346,1714.9,1714.8,8.17374661]
[1693399400637,3.04583592,1715.0,1714.8,9.60732837]
[1693399401939,3.04583592,1715.0,1714.8,1.44232837]
[1693399402837,13.88576443,1715.1,1714.8,1.44232837]
[1693399402838,1.52338233,1714.9,1714.8,1.44232837]
[1693399407637,1.52338233,1715.0,1714.8,6.69132837]
[1693399407937,1.52338233,1715.0,1714.9,5.47773647]
[1693399409832,7.8753724,1715.1,1714.9,3.2078]
[1693399410031,13.1243724,1715.1,1714.8,0.00874661]
[1693399410338,1.52352355,1714.9,1714.8,0.00874661]
[1693399410739,1.52352355,1714.9,1714.8,1.44232837]
[1693399413936,7.51893648,1714.9,1714.8,0.00874661]
[1693399414334,10.5647724,1714.9,1714.8,0.00874661]
[1693399414537,7.51893648,1714.9,1714.8,0.00874661]
[1693399414733,10.56589117,1714.9,1714.8,0.00874661]
[1693399415241,7.51893648,1714.9,1714.8,0.00874661]
[1693399415839,7.51893648,1714.9,1714.8,1.44232837]
[1693399416041,5.249,1714.9,1714.8,1.44232837]
[1693399416342,5.249,1714.9,1714.8,0.00874661]
[1693399416537,5.249,1714.9,1714.8,1.44232837]
[1693399417243,5.249,1714.9,1714.8,0.00874661]
[1693399417840,1.52378673,1714.9,1714.8,8.93951801]
[1693399418043,1.52378673,1714.9,1714.8,1.44232837]
[1693399418346,1.46287319,1714.9,1714.8,1.44232837]
[1693399418842,2.26993648,1715.0,1714.8,0.00874661]
[1693399419347,5.31689117,1715.0,1714.8,0.00874661]
[1693399420144,5.31689117,1715.0,1714.8,1.44232837]
[1693399421042,5.31907363,1715.0,1714.8,1.44232837]
[1693399422046,10.56807363,1715.0,1714.8,0.00874661]
[1693399422341,8.29813715,1714.9,1714.8,0.00874661]
[1693399424548,9.06042144,1714.9,1714.8,0.00874661]
[1693399433150,5.249,1714.9,1714.8,0.00874661]
[1693399433347,9.06042144,1714.9,1714.8,0.00874661]
[1693399440963,10.498,1714.9,1714.4,4.0586023]
[1693399441160,5.249,1714.5,1714.3,1.5273023]
[1693399441356,5.249,1714.5,1714.2,2.29095345]
[1693399441357,16.75559963,1714.4,1714.1,6.25515575]
[1693399441555,3.81224954,1714.5,1714.2,2.96088406]
[1693399441556,5.249,1714.3,1714.2,2.96088406]
[1693399441759,3.04979963,1714.5,1714.2,14.23974022]
[1693399441760,5.249,1714.5,1714.2,14.23974022]
[1693399441961,8.29879963,1714.7,1714.4,9.06816895]
[1693399442165,8.29879963,1714.7,1714.6,3.2078]
[1693399442362,5.249,1714.7,1714.6,3.2078]
[1693399442556,8.29879963,1714.7,1714.6,3.2078]
[1693399442761,8.29879963,1714.7,1714.4,12.5302155]
[1693399442967,5.249,1714.6,1714.4,9.55115197]
[1693399443266,4.6657,1714.6,1714.4,7.77693373]
[1693399443655,7.71549963,1714.6,1714.4,4.81513647]
[1693399443857,7.71549963,1714.6,1714.4,6.24871823]
[1693399444160,7.71549963,1714.6,1714.4,4.81513647]
[1693399444357,5.249,1714.5,1714.4,2.5452]
[1693399444873,8.4568,1714.5,1714.3,3.9204155]
[1693399445065,7.51893648,1714.4,1714.3,2.3922]
[1693399445967,7.51893648,1714.4,1714.3,3.82578176]
[1693399445968,5.249,1714.4,1714.3,3.82578176]
[1693399446770,5.249,1714.4,1714.3,2.3922]
[1693399446970,5.249,1714.4,1714.3,3.82578176]
[1693399448461,5.249,1714.4,1714.3,2.3922]
[1693399448867,10.498,1714.4,1714.1,1.5282155]
[1693399449068,5.249,1714.2,1714.1,3.9721155]
[1693399449362,5.249,1714.2,1714.1,3.87748176]
[1693399449563,5.249,1714.2,1714.1,2.4439]
[1693399450275,5.249,1714.2,1714.1,3.87748176]
[1693399451578,5.249,1714.2,1714.1,2.4439]
[1693399452767,5.249,1714.2,1714.0,4.7360155]
[1693399452969,10.72673648,1714.1,1713.9,4.0304155]
[1693399453173,5.249,1714.0,1713.9,2.5022]
[1693399453371,7.51893648,1714.0,1713.8,4.0185155]
[1693399453571,5.249,1713.9,1713.8,5.45209726]
[1693399453976,5.249,1713.9,1713.8,1.5282155]
[1693399454571,5.249,1713.9,1713.8,2.96179726]
[1693399455570,5.249,1713.9,1713.8,5.87943938]
[1693399455771,5.249,1713.9,1713.8,4.44585762]
[1693399455966,5.249,1713.9,1713.8,5.87943938]
[1693399458772,5.249,1713.9,1713.8,8.17039283]
[1693399458975,5.249,1714.0,1713.8,6.64217733]
[1693399459177,5.249,1714.0,1713.9,2.26993647]
[1693399460281,5.249,1714.0,1713.9,3.79503781]
[1693399460583,5.249,1714.0,1713.9,2.26993647]
[1693399461076,5.249,1714.0,1713.8,3.81605479]
[1693399461282,5.249,1714.0,1713.8,5.87620491]
[1693399461482,5.249,1714.0,1713.8,2.9586831]
[1693399461872,5.249,1714.0,1713.9,2.26993647]
[1693399465380,7.7782,1714.0,1713.8,1.52510134]
[1693399465586,7.7782,1714.0,1713.8,6.71258674]
[1693399465887,7.7782,1714.0,1713.8,3.79503781]
[1693399466083,7.7782,1714.0,1713.8,5.22861957]
[1693399466484,5.249,1714.0,1713.8,5.22861957]
[1693399466786,5.249,1714.0,1713.9,4.73290134]
[1693399466978,5.249,1714.0,1713.9,4.73262528]
[1693399468688,5.133,1714.0,1713.9,4.73262528]
[1693399469591,5.1126,1714.0,1713.9,4.73262528]
[1693399470389,5.1126,1714.0,1713.9,7.65008403]
[1693399471592,5.0665,1714.0,1713.9,7.65008403]
[1693399471994,5.249,1714.1,1713.9,7.65008403]
[1693399472294,5.249,1714.1,1714.0,3.70351823]
[1693399475495,5.249,1714.1,1714.0,2.26993647]
[1693399475693,5.249,1714.1,1713.9,7.0198632]
[1693399475896,5.249,1714.0,1713.9,1.52482528]
[1693399476095,5.249,1714.0,1713.8,1.52482528]
[1693399476292,7.51893648,1713.9,1713.8,4.44251103]
[1693399476692,7.51893648,1713.9,1713.7,1.52482528]
[1693399476693,10.72673648,1713.9,1713.7,1.52482528]
[1693399476890,5.249,1713.8,1713.7,1.52482528]
[1693399477496,7.8376,1713.8,1713.7,1.52482528]
[1693399482597,7.8376,1713.8,1713.7,2.95840704]
[1693399483000,7.8376,1713.8,1713.7,1.52482528]
[1693399484600,7.8376,1713.8,1713.6,1.52482528]
[1693399484905,7.51893648,1713.7,1713.6,1.52482528]
[1693399485201,7.51893648,1713.7,1713.6,7.36109277]
[1693399485405,7.51893648,1713.7,1713.6,4.44295892]
[1693399486705,7.51893648,1713.7,1713.6,5.87654068]
[1693399486905,7.51893648,1713.7,1713.6,4.44295892]
[1693399487798,10.72673648,1713.7,1713.6,2.91813364]
[1693399488398,10.72673648,1713.7,1713.6,4.3517154]
[1693399488595,10.72673648,1713.7,1713.6,2.91813364]
[1693399490908,8.4568,1713.7,1713.6,2.91813364]
[1693399491405,8.4568,1713.7,1713.6,4.3517154]
[1693399491608,5.249,1713.7,1713.6,5.87654068]
[1693399493006,5.249,1713.7,1713.6,8.79463294]
[1693399496006,5.249,1713.7,1713.6,11.08187086]
[1693399496908,5.249,1713.7,1713.6,8.79463294]
[1693399497110,5.249,1713.7,1713.6,7.36105118]
[1693399497402,5.249,1713.7,1713.6,8.79463294]
[1693399497804,5.249,1713.7,1713.6,8.79466321]
[1693399498308,5.249,1713.7,1713.6,11.08190113]
[1693399498708,5.249,1713.7,1713.6,9.55707585]
[1693399499612,5.249,1713.7,1713.6,7.36381948]
[1693399499806,5.249,1713.7,1713.6,2.91813364]
[1693399500007,8.4568,1713.7,1713.6,2.91813364]
[1693399500305,8.4568,1713.7,1713.6,4.3517154]
[1693399500504,5.249,1713.7,1713.6,5.87927871]
[1693399501008,5.249,1713.8,1713.6,9.55696795]
[1693399501305,5.249,1713.9,1713.7,7.00521974]
[1693399501609,5.249,1713.9,1713.8,1.43358176]
[1693399503208,5.249,1713.9,1713.7,4.17294212]
[1693399503404,5.249,1713.8,1713.6,1.52744212]
[1693399503704,5.249,1713.7,1713.6,4.44548237]
[1693399503910,5.249,1713.7,1713.6,5.87906413]
[1693399504113,5.249,1713.7,1713.6,4.44548237]
[1693399504305,5.249,1713.7,1713.6,5.87906413]
[1693399504612,5.249,1713.8,1713.6,8.79710232]
[1693399504812,5.249,1713.8,1713.7,2.26993647]
[1693399505514,5.249,1713.9,1713.7,7.00517859]
[1693399505811,7.53341468,1713.9,1713.7,6.91131823]
[1693399506609,2.28441468,1714.0,1713.8,14.52417874]
[1693399506810,2.28441468,1714.2,1713.9,13.68776035]
[1693399507009,2.28441468,1714.2,1714.1,8.4568]
[1693399507202,2.28441468,1714.3,1714.1,12.16031823]
[1693399507407,1.70091468,1714.4,1714.2,5.249]
[1693399507608,1.70091468,1714.4,1714.3,8.4568]
[1693399507811,7.71138624,1714.6,1714.3,19.7397204]
[1693399508009,3.04588624,1714.6,1714.5,3.2078]
[1693399508213,3.04588624,1714.7,1714.5,6.91131823]
[1693399508803,4.56882936,1715.0,1714.6,12.9897043]
[1693399508804,8.29488624,1714.9,1714.6,12.9897043]
[1693399509010,8.29488624,1714.9,1714.7,6.91131823]
[1693399509216,3.04588624,1714.9,1714.7,12.16031823]
[1693399509413,2.46258624,1714.9,1714.7,12.16031823]
[1693399509608,2.46258624,1715.0,1714.7,12.16031823]
[1693399510515,5.249,1714.9,1714.7,3.70351823]
[1693399511015,5.1846,1714.9,1714.7,3.70351823]
[1693399511415,5.1846,1714.9,1714.7,6.91131823]
[1693399513614,5.1846,1714.9,1714.7,5.47773647]
[1693399513811,5.1846,1714.9,1714.8,1.43358176]
[1693399514017,5.1846,1714.9,1714.7,5.47773647]
[1693399514411,5.1846,1714.9,1714.7,6.91131823]
[1693399514816,5.1846,1714.9,1714.7,5.47773647]
[1693399515017,7.51893648,1714.8,1714.7,3.2078]
[1693399515222,5.249,1714.8,1714.5,3.6705455]
[1693399515522,5.249,1714.6,1714.5,3.6705455]
[1693399515819,5.249,1714.6,1714.5,5.10412726]
[1693399516523,5.249,1714.6,1714.2,17.39865882]
[1693399516721,5.249,1714.3,1714.2,3.67665882]
[1693399516911,5.249,1714.3,1714.2,5.11024058]
[1693399517115,5.249,1714.3,1714.2,1.90244058]
[1693399517621,5.249,1714.3,1714.2,0.46885882]
[1693399517918,5.249,1714.3,1714.0,3.2078]
[1693399518120,5.249,1714.3,1713.8,22.13058653]
[1693399518121,2.26993648,1714.2,1714.1,1.43358176]
[1693399518313,7.51893648,1714.2,1713.8,10.85266547]
[1693399518517,5.249,1714.1,1713.8,12.25417859]
[1693399518717,5.249,1714.1,1713.9,1.43358176]
[1693399519323,2.26993648,1714.0,1713.9,1.43358176]
[1693399520523,5.249,1714.1,1713.9,1.43358176]
[1693399521124,5.249,1714.1,1714.0,2.26993647]
[1693399522015,5.249,1714.2,1714.0,2.26993647]
[1693399522215,5.249,1714.2,1714.1,1.43358176]
[1693399522618,5.249,1714.2,1714.1,8.91410923]
[1693399523217,5.249,1714.4,1714.1,14.16310923]
[1693399523417,2.26993648,1714.4,1714.2,2.26993647]
[1693399523618,5.249,1714.2,1714.1,1.43358176]
[1693399524020,5.249,1714.2,1714.0,3.2078]
[1693399524217,5.249,1714.1,1714.0,3.2078]
[1693399524526,5.249,1714.1,1714.0,4.64138176]
[1693399525025,5.249,1714.2,1714.0,4.64138176]
[1693399527124,5.47773648,1714.3,1714.0,4.64138176]
[1693399527326,8.169,1714.1,1714.0,4.64138176]
[1693399527524,8.169,1714.2,1714.0,4.64138176]
[1693399527729,8.169,1714.2,1714.1,2.26993647]
[1693399528232,2.26993648,1714.3,1714.1,2.26993647]
[1693399528425,2.26993648,1714.3,1714.1,3.70351823]
[1693399529430,2.26993648,1714.3,1714.1,11.87251823]
[1693399530233,11.3768,1714.5,1714.1,11.87251823]
[1693399531237,8.169,1714.5,1714.1,11.87251823]
[1693399531432,8.169,1714.5,1714.2,3.2078]
[1693399531641,10.7462,1714.6,1714.3,3.70351823]
[1693399532144,2.5772,1714.6,1714.4,8.169]
[1693399532348,2.5772,1714.6,1714.5,3.70351823]
[1693399534441,3.67459744,1714.9,1714.5,11.87251823]
[1693399534442,8.17774762,1714.9,1714.5,11.87251823]
[1693399534647,10.78074762,1714.9,1714.6,3.2078]
[1693399534844,10.78074762,1714.9,1714.7,3.70351823]
[1693399535247,8.17774762,1714.9,1714.8,7.43937407]
[1693399535442,0.00874762,1714.9,1714.8,7.43937407]
[1693399536150,8.9970578,1715.3,1714.9,2.26993647]
[1693399536151,4.6069,1715.3,1714.9,2.26993647]
[1693399536346,5.8508578,1715.3,1715.0,11.3768]
[1693399536548,5.2677578,1715.3,1715.0,18.96490724]
[1693399536744,5.2677578,1715.3,1715.1,3.70351823]
[1693399537147,1.4604,1715.3,1715.1,3.70351823]
[1693399538444,1.52032743,1715.2,1715.1,3.70351823]
[1693399539151,1.51990039,1715.2,1715.1,3.70351823]
[1693399539554,2.98030039,1715.3,1715.1,3.70351823]
[1693399540255,1.51990039,1715.2,1715.1,3.70351823]
[1693399540450,1.51990039,1715.3,1715.1,3.70351823]
[1693399540760,8.169,1715.4,1715.2,3.2078]
[1693399540761,1.51990039,1715.4,1715.2,3.2078]
[1693399540952,1.51990039,1715.4,1715.3,3.70351823]
[1693399541352,1.51990039,1715.5,1715.3,3.70351823]
[1693399541858,1.51990039,1715.5,1715.3,11.87251823]
[1693399542059,1.51990039,1715.4,1715.3,11.87251823]
[1693399542255,3.04000177,1715.6,1715.3,11.87251823]
[1693399542256,1.51990039,1715.5,1715.3,11.87251823]
[1693399543154,1.51990039,1715.5,1715.4,7.5562255]
[1693399545857,1.51990039,1715.6,1715.4,7.5562255]
[1693399546061,1.51990039,1715.6,1715.5,1.43358176]
[1693399546256,1.51990039,1715.6,1715.5,3.70351823]
[1693399546457,4.72770039,1715.7,1715.5,3.70351823]
[1693399546961,4.72770039,1715.7,1715.6,8.169]
[1693399548162,4.72770039,1715.7,1715.5,3.70351823]
[1693399551865,9.68890039,1715.8,1715.5,3.70351823]
[1693399552268,6.24780177,1716.0,1715.7,8.169]
[1693399552269,1.51990039,1715.9,1715.7,8.169]
[1693399552462,1.51990039,1716.0,1715.8,3.70351823]
[1693399552662,1.51990039,1716.0,1715.8,11.2212128]
[1693399553069,1.51990039,1716.0,1715.9,8.169]
[1693399555479,6.41920039,1716.1,1715.9,8.169]
[1693399557271,6.41920039,1716.1,1716.0,3.70351823]
[1693399557477,4.01040039,1716.1,1716.0,3.70351823]
[1693399558272,1.51990039,1716.3,1716.0,15.08031823]
[1693399558468,3.2078,1716.4,1716.0,15.08031823]
[1693399558469,7.18380039,1716.4,1716.0,15.08031823]
[1693399558872,7.18000102,1716.4,1716.3,8.169]
[1693399559070,7.18000102,1716.4,1716.3,11.87251823]
[1693399560167,7.18000102,1716.4,1716.3,10.43893647]
[1693399560574,7.18000102,1716.4,1716.3,11.87251823]
[1693399561673,4.72390102,1716.4,1716.3,11.87251823]
[1693399561876,2.4397,1716.5,1716.3,3.70351823]
[1693399562076,2.4397,1716.5,1716.3,11.87251823]
[1693399566476,2.4397,1716.5,1716.3,10.43893647]
[1693399566883,3.2078,1716.4,1716.2,8.169]
[1693399567077,5.47773648,1716.4,1716.2,8.169]
[1693399567277,5.47773648,1716.4,1716.2,5.245]
[1693399567778,10.72273648,1716.4,1716.1,5.245]
[1693399568176,8.4528,1716.2,1715.9,5.245]
[1693399568381,2.26993648,1716.1,1715.9,5.245]
[1693399568772,5.245,1716.0,1715.7,5.245]
[1693399568977,2.26993648,1715.9,1715.7,5.245]
[1693399569179,2.26993648,1715.9,1715.7,6.67858176]
[1693399572383,2.26993648,1715.9,1715.7,1.43358176]
[1693399572790,2.26993648,1715.9,1715.6,11.84207513]
[1693399573082,10.43293648,1715.9,1715.6,3.21654228]
[1693399576283,10.43293648,1715.9,1715.7,1.43358176]
[1693399576785,11.3708,1716.0,1715.7,1.43358176]
[1693399576985,11.3708,1716.0,1715.7,3.70351823]
[1693399578181,12.88690102,1716.0,1715.7,3.70351823]
[1693399580092,15.1568375,1716.0,1715.7,3.70351823]
[1693399580298,8.163,1715.9,1715.6,3.21654228]
[1693399580593,2.26993648,1715.8,1715.6,3.21654228]
[1693399581186,2.26993648,1715.8,1715.6,4.65012404]
[1693399583387,3.7860375,1715.8,1715.6,4.65012404]
[1693399583586,3.7860375,1715.8,1715.6,3.21654228]
[1693399585388,3.7860375,1715.8,1715.6,4.65012404]
[1693399585588,6.05756935,1715.8,1715.6,0.00874228]
[1693399585788,9.26536935,1715.8,1715.6,0.00874228]
[1693399586089,1.51610102,1715.7,1715.6,0.00874228]
[1693399586286,17.42836935,1715.8,1715.6,0.00874228]
[1693399586480,1.51610102,1715.7,1715.6,0.00874228]
[1693399586687,2.27153185,1715.7,1715.6,0.00874228]
[1693399587186,2.2845698,1715.7,1715.6,0.00874228]
[1693399587381,16.67293852,1715.8,1715.6,0.00874228]
[1693399587586,3.03220204,1715.7,1715.6,0.00874228]
[1693399588184,13.64073648,1715.8,1715.6,0.00874228]
[1693399588185,16.67293852,1715.8,1715.6,0.00874228]
[1693399588390,3.03220204,1715.7,1715.6,0.00874228]
[1693399589783,11.19520204,1715.7,1715.6,0.00874228]
[1693399590192,3.03220204,1715.7,1715.6,0.00874228]
[1693399590588,3.03220204,1715.7,1715.6,1.44232404]
[1693399590895,2.28548783,1715.7,1715.6,1.44232404]
[1693399591396,2.28548783,1715.7,1715.6,9.60532404]
[1693399591594,1.52413857,1715.7,1715.6,9.60532404]
[1693399592695,3.8096264,1715.7,1715.6,9.60532404]
[1693399592892,1.52413857,1715.8,1715.6,20.27441397]
[1693399593196,3.8096264,1716.0,1715.7,10.43293647]
[1693399593398,1.52413857,1716.0,1715.9,11.3708]
[1693399593697,1.52413857,1716.0,1715.9,13.64073647]
[1693399594396,3.8096264,1716.0,1715.9,13.64073647]
[1693399595395,2.28548783,1716.0,1715.9,13.64073647]
[1693399597091,1.52494837,1716.0,1715.9,13.64073647]
[1693399597286,1.52494837,1716.0,1715.9,10.72273647]
[1693399597488,3.8104362,1716.0,1715.9,10.72273647]
[1693399598892,1.52494837,1716.0,1715.9,10.72273647]
[1693399599291,2.28548783,1716.1,1715.9,18.4698316]
[1693399599493,2.28728945,1716.2,1716.1,5.245]
[1693399599700,2.28728945,1716.2,1716.1,15.96773647]
[1693399599902,1.70448945,1716.2,1716.1,23.48463649]
[1693399600092,3.03220204,1716.4,1716.1,23.48463649]
[1693399600298,2.98570204,1716.4,1716.3,8.4528]
[1693399600502,0.00873972,1716.5,1716.3,10.72273647]
[1693399600801,3.21629228,1716.6,1716.4,6.67858176]
[1693399601001,3.21629228,1716.6,1716.5,7.51493647]
[1693399601995,3.21629228,1716.6,1716.5,10.72273647]
[1693399602397,0.86785037,1716.8,1716.5,13.63473647]
[1693399602595,15.18280585,1717.0,1716.7,11.3648]
[1693399602893,15.18280585,1717.0,1716.8,8.157]
[1693399603102,10.63450278,1717.0,1716.8,9.59058176]
[1693399603301,5.6944,1717.0,1716.8,9.59058176]
[1693399604105,5.6944,1717.0,1716.8,11.86051823]
[1693399605201,6.56225037,1717.0,1716.8,11.86051823]
[1693399605404,5.6944,1717.0,1716.8,11.86051823]
[1693399606598,2.4866,1717.0,1716.8,11.86051823]
[1693399607103,2.4866,1717.0,1716.9,11.3648]
[1693399607403,0.86785037,1717.3,1716.9,18.81632]
[1693399607604,0.86785037,1717.3,1717.2,8.157]
[1693399607796,6.50725037,1717.4,1717.2,9.59058176]
[1693399608003,5.6394,1717.4,1717.2,10.42693647]
[1693399608206,7.90933648,1717.4,1717.2,10.42693647]
[1693399608400,2.4316,1717.4,1717.2,11.86051823]